fUSD/lending_fUSD_20240418
["ID","MTS","AMOUNT","RATE_DAILY","PERIOD"]
[322886780,1713479460071,-2057.558154,0.00017619,2]
[322886781,1713479460081,-2057.558154,0.00017619,2]
[322886782,1713479460091,-2057.558144,0.00017619,2]
[322886783,1713479460100,-3793.69,0.00017619,2]
[322886784,1713479460110,-3793.69,0.00017619,2]
[322886785,1713479460119,-3793.69,0.00017619,2]
[322886786,1713479460129,-3793.69,0.00017619,2]
[322886787,1713479460138,-500.0,0.00017619,2]
[322886788,1713479460148,-625.86753895,0.00017619,2]
[322886789,1713479460157,-2171.9,0.00017619,2]
[322886790,1713479460167,-2171.9,0.00017619,2]
[322886791,1713479460176,-2343.56,0.00017619,2]
[322886792,1713479460186,-2343.56,0.00017619,2]
[322886793,1713479460196,-500.0,0.00017619,2]
[322886794,1713479460205,-500.0,0.00017619,2]
[322886795,1713479460214,-5801.29,0.00017619,2]
[322886796,1713479460224,-5801.29,0.00017619,2]
[322886797,1713479460233,-5801.29,0.00017619,2]
[322886798,1713479460242,-5801.29,0.00017619,2]
[322886799,1713479460251,-237.493031,0.00017619,2]
[322886800,1713479460261,-6059.79,0.00017619,2]
[322886801,1713479460271,-6059.79,0.00017619,2]
[322886802,1713479460280,-237.493031,0.00017619,2]
[322886803,1713479460289,-237.493031,0.00017619,2]
[322886804,1713479460298,-237.493031,0.00017619,2]
[322886805,1713479460308,-737.31,0.00017619,2]
[322886806,1713479460317,-737.31,0.00017619,2]
[322886807,1713479460327,-737.31,0.00017619,2]
[322886808,1713479460336,-737.31,0.00017619,2]
[322886809,1713479460345,-237.493031,0.00017619,2]
[322886810,1713479460355,-237.493031,0.00017619,2]
[322886811,1713479460364,-237.493031,0.00017619,2]
[322886812,1713479460373,-237.493037,0.00017619,2]
[322886813,1713479460383,-500.0,0.00017619,2]
[322886814,1713479460392,-500.0,0.00017619,2]
[322886815,1713479460401,-3073.77,0.00017619,2]
[322886816,1713479460410,-5036.93,0.00017619,2]
[322886817,1713479460419,-3073.77,0.00017619,2]
[322886818,1713479460428,-5036.93,0.00017619,2]
[322886819,1713479460437,-17435.84,0.00017619,2]
[322886820,1713479460446,-17435.84,0.00017619,2]
[322886821,1713479460456,-500.0,0.00017619,2]
[322886822,1713479460465,-500.0,0.00017619,2]
[322886823,1713479460474,-9359.99,0.00017619,2]
[322886824,1713479460484,-9359.99,0.00017619,2]
[322886825,1713479460493,-9359.99,0.00017619,2]
[322886826,1713479460503,-500.0,0.00017619,2]
[322886827,1713479460512,-9359.99,0.00017619,2]
[322886828,1713479460521,-500.0,0.00017619,2]
[322886829,1713479460531,-500.0,0.00017619,2]
[322886830,1713479460540,-500.0,0.00017619,2]
[322886831,1713479460549,-500.0,0.00017619,2]
[322886832,1713479460561,-500.0,0.00017619,2]
[322886833,1713479460571,-2113.84,0.00017619,2]
[322886834,1713479460581,-2113.84,0.00017619,2]
[322886835,1713479460590,-8204.47,0.00017619,2]
[322886836,1713479460600,-8204.47,0.00017619,2]
[322886837,1713479460610,-500.0,0.00017619,2]
[322886838,1713479460620,-500.0,0.00017619,2]
[322886839,1713479460629,-1016.6,0.00017619,2]
[322886840,1713479460639,-1016.6,0.00017619,2]
[322886841,1713479460649,-304.42843617,0.00017619,2]
[322886842,1713479460658,-500.0,0.00017619,2]
[322886843,1713479460668,-500.0,0.00017619,2]
[322886844,1713479460678,-2589.11,0.00017619,2]
[322886845,1713479460687,-2589.11,0.00017619,2]
[322886846,1713479460697,-16870.05,0.00017619,2]
[322886847,1713479460707,-16870.05,0.00017619,2]
[322886848,1713479460717,-16870.05,0.00017619,2]
[322886849,1713479460727,-16870.05,0.00017619,2]
[322886850,1713479460737,-500.0,0.00017619,2]
[322886851,1713479460747,-500.0,0.00017619,2]
[322886852,1713479460757,-6772.51,0.00017619,2]
[322886853,1713479460767,-6772.51,0.00017619,2]
[322886854,1713479460782,-6772.51,0.00017619,2]
[322886855,1713479460823,-11563.86,0.00017619,2]
[322886856,1713479460834,-6772.51,0.00017619,2]
[322886857,1713479460845,-11563.86,0.00017619,2]
[322886858,1713479460855,-500.0,0.00017619,2]
[322886859,1713479460866,-500.0,0.00017619,2]
[322886860,1713479460876,-658.24,0.00017619,2]
[322886861,1713479460886,-658.24,0.00017619,2]
[322886862,1713479460896,-500.0,0.00017619,2]
[322886863,1713479460907,-593.67942451,0.00017619,2]
[322886864,1713479460919,-1848.31,0.00017619,2]
[322886865,1713479460933,-1848.31,0.00017619,2]
[322886866,1713479460943,-500.0,0.00017619,2]
[322886867,1713479460954,-500.0,0.00017619,2]
[322886868,1713479460967,-10346.74,0.00017619,2]
[322886869,1713479460978,-10346.74,0.00017619,2]
[322886870,1713479460988,-10346.74,0.00017619,2]
[322886871,1713479461001,-14550.9,0.00017619,2]
[322886872,1713479461011,-10346.74,0.00017619,2]
[322886873,1713479461022,-2684.87,0.00017619,2]
[322886874,1713479461032,-14550.9,0.00017619,2]
[322886875,1713479461042,-2684.87,0.00017619,2]
[322886876,1713479461053,-14550.9,0.00017619,2]
[322886877,1713479461064,-14550.9,0.00017619,2]
[322886878,1713479461076,-500.0,0.00017619,2]
[322886879,1713479461087,-576.13451251,0.00017619,2]
[322886880,1713479461100,-119802.4,0.00017619,2]
[322886881,1713479461113,-119802.4,0.00017619,2]
[322886882,1713479461127,-730.81,0.00017619,2]
[322886883,1713479461138,-730.81,0.00017619,2]
[322886884,1713479461152,-500.0,0.00017619,2]
[322886885,1713479461163,-500.0,0.00017619,2]
[322886886,1713479461174,-570.07,0.00017619,2]
[322886887,1713479461187,-570.07,0.00017619,2]
[322886888,1713479461198,-5444.1,0.00017619,2]
[322886889,1713479461208,-5444.1,0.00017619,2]
[322886890,1713479461219,-500.0,0.00017619,2]
[322886891,1713479461230,-500.0,0.00017619,2]
[322886892,1713479461241,-1657.71,0.00017619,2]
[322886893,1713479461252,-1657.71,0.00017619,2]
[322886894,1713479461262,-1657.71,0.00017619,2]
[322886895,1713479461274,-1657.71,0.00017619,2]
[322886896,1713479461285,-5659.71,0.00017619,2]
[322886897,1713479461296,-5659.71,0.00017619,2]
[322886898,1713479461305,-500.0,0.00017619,2]
[322886899,1713479461315,-500.0,0.00017619,2]
[322886900,1713479461325,-13978.28,0.00017619,2]
[322886901,1713479461337,-13978.28,0.00017619,2]
[322886902,1713479461349,-500.0,0.00017619,2]
[322886903,1713479461358,-500.0,0.00017619,2]
[322886904,1713479461367,-5187.3,0.00017619,2]
[322886905,1713479461376,-5187.3,0.00017619,2]
[322886906,1713479461386,-5187.3,0.00017619,2]
[322886907,1713479461395,-5187.3,0.00017619,2]
[322886908,1713479461404,-6627.14,0.00017619,2]
[322886909,1713479461414,-6627.14,0.00017619,2]
[322886910,1713479461424,-226.2010352,0.00017619,2]
[322886911,1713479461433,-7584.82,0.00017619,2]
[322886912,1713479461443,-7584.82,0.00017619,2]
[322886913,1713479461453,-500.0,0.00017619,2]
[322886914,1713479461464,-500.0,0.00017619,2]
[322886915,1713479461474,-2913.45,0.00017619,2]
[322886916,1713479461483,-2913.45,0.00017619,2]
[322886917,1713479461492,-2913.45,0.00017619,2]
[322886918,1713479461502,-2913.45,0.00017619,2]
[322886919,1713479461512,-1240.54,0.00017619,2]
[322886920,1713479461521,-1240.54,0.00017619,2]
[322886921,1713479461531,-1240.54,0.00017619,2]
[322886922,1713479461541,-1240.54,0.00017619,2]
[322886923,1713479461550,-5520.51,0.00017619,2]
[322886924,1713479461560,-5520.51,0.00017619,2]
[322886925,1713479461570,-500.0,0.00017619,2]
[322886926,1713479461579,-500.0,0.00017619,2]
[322886927,1713479461589,-500.0,0.00017619,2]
[322886928,1713479461602,-500.0,0.00017619,2]
[322886929,1713479461613,-43505.78,0.00017619,2]
[322886930,1713479461622,-43505.78,0.00017619,2]
[322886931,1713479461633,-43505.78,0.00017619,2]
[322886932,1713479461643,-43505.78,0.00017619,2]
[322886933,1713479461653,-500.0,0.00017619,2]
[322886934,1713479461663,-500.0,0.00017619,2]
[322886935,1713479461675,-5110.55,0.00017619,2]
[322886936,1713479461686,-500.0,0.00017619,2]
[322886937,1713479461697,-5110.55,0.00017619,2]
[322886938,1713479461708,-500.0,0.00017619,2]
[322886939,1713479461718,-5110.55,0.00017619,2]
[322886940,1713479461728,-5110.55,0.00017619,2]
[322886941,1713479461738,-8531.64,0.00017619,2]
[322886942,1713479461748,-8531.64,0.00017619,2]
[322886943,1713479461758,-500.0,0.00017619,2]
[322886944,1713479461769,-500.0,0.00017619,2]
[322886945,1713479461779,-1900.45,0.00017619,2]
[322886946,1713479461789,-1900.45,0.00017619,2]
[322886947,1713479461800,-1900.45,0.00017619,2]
[322886948,1713479461810,-1900.45,0.00017619,2]
[322886949,1713479461820,-20313.76,0.00017619,2]
[322886950,1713479461832,-20313.76,0.00017619,2]
[322886951,1713479461843,-20313.76,0.00017619,2]
[322886952,1713479461856,-20313.76,0.00017619,2]
[322886953,1713479461867,-5529.12,0.00017619,2]
[322886954,1713479461877,-5529.12,0.00017619,2]
[322886955,1713479461887,-169.08277908,0.00017619,2]
[322886956,1713479461898,-2257.03,0.00017619,2]
[322886957,1713479461908,-2257.03,0.00017619,2]
[322886958,1713479461919,-500.0,0.00017619,2]
[322886959,1713479461930,-500.0,0.00017619,2]
[322886960,1713479461940,-6019.71,0.00017619,2]
[322886961,1713479461951,-14719.5,0.00017619,2]
[322886962,1713479461963,-6019.71,0.00017619,2]
[322886963,1713479461973,-14719.5,0.00017619,2]
[322886964,1713479461984,-14719.5,0.00017619,2]
[322886965,1713479461995,-14719.5,0.00017619,2]
[322886966,1713479462005,-2908.19,0.00017619,2]
[322886967,1713479462015,-2908.19,0.00017619,2]
[322886968,1713479462025,-587.86,0.00017619,2]
[322886969,1713479462035,-587.86,0.00017619,2]
[322886970,1713479462046,-587.86,0.00017619,2]
[322886971,1713479462056,-500.0,0.00017619,2]
[322886972,1713479462067,-587.86,0.00017619,2]
[322886973,1713479462078,-500.0,0.00017619,2]
[322886974,1713479462090,-10167.04,0.00017619,2]
[322886975,1713479462104,-10167.04,0.00017619,2]
[322886976,1713479462115,-5979.94,0.00017619,2]
[322886977,1713479462127,-5979.94,0.00017619,2]
[322886978,1713479462138,-500.0,0.00017619,2]
[322886979,1713479462149,-500.0,0.00017619,2]
[322886980,1713479462161,-1510.48,0.00017619,2]
[322886981,1713479462172,-29533.65,0.00017619,2]
[322886982,1713479462183,-1510.48,0.00017619,2]
[322886983,1713479462194,-29533.65,0.00017619,2]
[322886984,1713479462204,-29533.65,0.00017619,2]
[322886985,1713479462216,-29533.65,0.00017619,2]
[322886986,1713479462226,-500.0,0.00017619,2]
[322886987,1713479462236,-500.0,0.00017619,2]
[322886988,1713479462246,-2675.66,0.00017619,2]
[322886989,1713479462257,-6813.21,0.00017619,2]
[322886990,1713479462268,-2675.66,0.00017619,2]
[322886991,1713479462279,-6813.21,0.00017619,2]
[322886992,1713479462290,-8353.24,0.00017619,2]
[322886993,1713479462301,-8353.24,0.00017619,2]
[322886994,1713479462312,-8353.24,0.00017619,2]
[322886995,1713479462323,-8353.24,0.00017619,2]
[322886996,1713479462334,-9812.78,0.00017619,2]
[322886997,1713479462347,-9812.78,0.00017619,2]
[322886998,1713479462357,-9812.78,0.00017619,2]
[322886999,1713479462368,-9812.78,0.00017619,2]
[322887000,1713479462378,-500.0,0.00017619,2]
[322887001,1713479462389,-500.0,0.00017619,2]
[322887002,1713479462399,-15377.02,0.00017619,2]
[322887003,1713479462408,-15377.02,0.00017619,2]
[322887004,1713479462418,-500.0,0.00017619,2]
[322887005,1713479462427,-500.0,0.00017619,2]
[322887006,1713479462437,-500.0,0.00017619,2]
[322887007,1713479462446,-500.0,0.00017619,2]
[322887008,1713479462457,-23677.88,0.00017619,2]
[322887009,1713479462467,-23677.88,0.00017619,2]
[322887010,1713479462477,-14269.56,0.00017619,2]
[322887011,1713479462486,-14269.56,0.00017619,2]
[322887012,1713479462496,-648.59,0.0001762,2]
[322887013,1713479462505,-648.59,0.0001762,2]
[322887014,1713479462515,-500.0,0.0001762,2]
[322887015,1713479462525,-500.0,0.0001762,2]
[322887016,1713479462534,-500.0,0.0001762,2]
[322887017,1713479462544,-500.0,0.0001762,2]
[322887018,1713479462553,-843.99,0.0001762,2]
[322887019,1713479462563,-843.99,0.0001762,2]
[322887020,1713479462572,-511.58,0.0001762,2]
[322887021,1713479462582,-511.58,0.0001762,2]
[322887022,1713479462592,-500.0,0.0001762,2]
[322887023,1713479462603,-500.0,0.0001762,2]
[322887024,1713479462613,-3232.95,0.0001762,2]
[322887025,1713479462622,-3232.95,0.0001762,2]
[322887026,1713479462632,-1914.68,0.0001762,2]
[322887027,1713479462642,-1914.68,0.0001762,2]
[322887028,1713479462651,-816.64,0.0001762,2]
[322887029,1713479462661,-1643.28,0.0001762,2]
[322887030,1713479462670,-816.64,0.0001762,2]
[322887031,1713479462680,-1643.28,0.0001762,2]
[322887032,1713479462690,-1101.33,0.0001762,2]
[322887033,1713479462700,-1101.33,0.0001762,2]
[322887034,1713479462709,-2253.82,0.0001762,2]
[322887035,1713479462720,-2253.82,0.0001762,2]
[322887036,1713479462729,-1470.6,0.0001762,2]
[322887037,1713479462739,-1470.6,0.0001762,2]
[322887038,1713479462749,-1280.1,0.0001762,2]
[322887039,1713479462759,-1280.1,0.0001762,2]
[322887040,1713479462770,-2662.97,0.0001762,2]
[322887041,1713479462780,-2662.97,0.0001762,2]
[322887042,1713479463040,-1253.1,0.0001762,2]
[322887043,1713479463050,-1253.1,0.0001762,2]
[322887044,1713479463060,-500.0,0.0001762,2]
[322887045,1713479463070,-500.0,0.0001762,2]
[322887046,1713479463081,-1389.04,0.0001762,2]
[322887047,1713479463092,-1389.04,0.0001762,2]
[322887048,1713479463106,-1255.93,0.0001762,2]
[322887049,1713479463117,-1255.93,0.0001762,2]
[322887050,1713479463128,-1135.63,0.0001762,2]
[322887051,1713479463139,-1135.63,0.0001762,2]
[322887052,1713479463149,-715.72,0.0001762,2]
[322887053,1713479463159,-715.72,0.0001762,2]
[322887054,1713479463169,-576.94,0.0001762,2]
[322887055,1713479463180,-500.0,0.0001762,2]
[322887056,1713479463190,-576.94,0.0001762,2]
[322887057,1713479463201,-500.0,0.0001762,2]
[322887058,1713479463212,-920.55,0.0001762,2]
[322887059,1713479463223,-920.55,0.0001762,2]
[322887060,1713479463233,-500.0,0.0001762,2]
[322887061,1713479463243,-500.0,0.0001762,2]
[322887062,1713479463254,-500.0,0.0001762,2]
[322887063,1713479463265,-500.0,0.0001762,2]
[322887064,1713479463275,-642.76,0.0001762,2]
[322887065,1713479463285,-642.76,0.0001762,2]
[322887066,1713479463295,-1401.79,0.0001762,2]
[322887067,1713479463306,-1401.79,0.0001762,2]
[322887068,1713479463317,-500.93778859,0.0001762,2]
[322887069,1713479463328,-981.72,0.0001762,2]
[322887070,1713479463338,-981.72,0.0001762,2]
[322887071,1713479463350,-2011.51,0.0001762,2]
[322887072,1713479463361,-500.0,0.0001762,2]
[322887073,1713479463372,-2011.51,0.0001762,2]
[322887074,1713479463382,-500.0,0.0001762,2]
[322887075,1713479463393,-500.0,0.0001762,2]
[322887076,1713479463403,-500.0,0.0001762,2]
[322887077,1713479463414,-819.33,0.0001762,2]
[322887078,1713479463423,-819.33,0.0001762,2]
[322887079,1713479463434,-2390.56,0.0001762,2]
[322887080,1713479463446,-2390.56,0.0001762,2]
[322887081,1713479463456,-653.25,0.0001762,2]
[322887082,1713479463467,-653.25,0.0001762,2]
[322887083,1713479463477,-911.05,0.0001762,2]
[322887084,1713479463487,-911.05,0.0001762,2]
[322887085,1713479463497,-500.0,0.0001762,2]
[322887086,1713479463507,-500.0,0.0001762,2]
[322887087,1713479463518,-500.0,0.0001762,2]
[322887088,1713479463530,-500.0,0.0001762,2]
[322887089,1713479463541,-1161.2,0.0001762,2]
[322887090,1713479463552,-1161.2,0.0001762,2]
[322887091,1713479463562,-1806.56,0.0001762,2]
[322887092,1713479463573,-1806.56,0.0001762,2]
[322887093,1713479463584,-633.2,0.0001762,2]
[322887094,1713479463594,-633.2,0.0001762,2]
[322887095,1713479463609,-500.0,0.0001762,2]
[322887096,1713479463621,-500.0,0.0001762,2]
[322887097,1713479463631,-648.0,0.0001762,2]
[322887098,1713479463642,-648.0,0.0001762,2]
[322887099,1713479463652,-500.0,0.0001762,2]
[322887100,1713479463662,-870.77,0.0001762,2]
[322887101,1713479463672,-612.67,0.0001762,2]
[322887102,1713479463682,-612.67,0.0001762,2]
[322887103,1713479463693,-870.77,0.0001762,2]
[322887104,1713479463705,-2629.25,0.0001762,2]
[322887105,1713479463716,-2629.25,0.0001762,2]
[322887106,1713479463726,-1120.72,0.0001762,2]
[322887107,1713479463736,-1120.72,0.0001762,2]
[322887108,1713479463746,-1709.4,0.0001762,2]
[322887109,1713479463756,-1709.4,0.0001762,2]
[322887110,1713479463767,-500.0,0.0001762,2]
[322887111,1713479463777,-500.0,0.0001762,2]
[322887112,1713479463786,-1011.87,0.0001762,2]
[322887113,1713479463796,-2001.08,0.0001762,2]
[322887114,1713479463805,-2001.08,0.0001762,2]
[322887115,1713479463815,-1011.87,0.0001762,2]
[322887116,1713479463824,-563.76962274,0.0001762,2]
[322887117,1713479463834,-1756.7,0.0001762,2]
[322887118,1713479463844,-1756.7,0.0001762,2]
[322887119,1713479463856,-763.88,0.0001762,2]
[322887120,1713479463866,-763.88,0.0001762,2]
[322887121,1713479463875,-1258.63,0.0001762,2]
[322887122,1713479463885,-1258.63,0.0001762,2]
[322887123,1713479463894,-500.0,0.0001762,2]
[322887124,1713479463903,-500.0,0.0001762,2]
[322887125,1713479463913,-500.0,0.0001762,2]
[322887126,1713479463925,-500.0,0.0001762,2]
[322887127,1713479463935,-1200.06,0.0001762,2]
[322887128,1713479463944,-1200.06,0.0001762,2]
[322887129,1713479463954,-500.0,0.0001762,2]
[322887130,1713479463964,-500.0,0.0001762,2]
[322887131,1713479463973,-1753.58,0.0001762,2]
[322887132,1713479463982,-1753.58,0.0001762,2]
[322887133,1713479463993,-2559.56,0.0001762,2]
[322887134,1713479464003,-2559.56,0.0001762,2]
[322887135,1713479464013,-545.47,0.0001762,2]
[322887136,1713479464023,-545.47,0.0001762,2]
[322887137,1713479464032,-796.52,0.0001762,2]
[322887138,1713479464042,-796.52,0.0001762,2]
[322887139,1713479464052,-500.0,0.0001762,2]
[322887140,1713479464061,-498.0786675,0.0001762,2]
[322887141,1713479464071,-500.0,0.0001762,2]
[322887142,1713479464080,-500.0,0.0001762,2]
[322887143,1713479464090,-1948.15,0.0001762,2]
[322887144,1713479464101,-2737.18,0.0001762,2]
[322887145,1713479464110,-1948.15,0.0001762,2]
[322887146,1713479464119,-2737.18,0.0001762,2]
[322887147,1713479464129,-500.0,0.0001762,2]
[322887148,1713479464138,-500.0,0.0001762,2]
[322887149,1713479464147,-506.66,0.0001762,2]
[322887150,1713479464157,-506.66,0.0001762,2]
[322887151,1713479464174,-654.02,0.0001762,2]
[322887152,1713479464183,-654.02,0.0001762,2]
[322887153,1713479464192,-500.0,0.0001762,2]
[322887154,1713479464202,-500.0,0.0001762,2]
[322887155,1713479464211,-500.0,0.0001762,2]
[322887156,1713479464220,-517.19003404,0.0001762,2]
[322887157,1713479464229,-500.0,0.0001762,2]
[322887158,1713479464239,-500.0,0.0001762,2]
[322887159,1713479464248,-500.0,0.0001762,2]
[322887160,1713479464257,-500.0,0.0001762,2]
[322887161,1713479464267,-1803.07,0.0001762,2]
[322887162,1713479464276,-1803.07,0.0001762,2]
[322887163,1713479464286,-774.41,0.0001762,2]
[322887164,1713479464295,-774.41,0.0001762,2]
[322887165,1713479464305,-1001.33,0.0001762,2]
[322887166,1713479464314,-1001.33,0.0001762,2]
[322887167,1713479464323,-2511.24,0.0001762,2]
[322887168,1713479464333,-2511.24,0.0001762,2]
[322887169,1713479464343,-500.0,0.0001762,2]
[322887170,1713479464354,-500.0,0.0001762,2]
[322887171,1713479464364,-996.63,0.0001762,2]
[322887172,1713479464374,-996.63,0.0001762,2]
[322887173,1713479464383,-500.0,0.0001762,2]
[322887174,1713479464393,-500.0,0.0001762,2]
[322887175,1713479464402,-500.0,0.0001762,2]
[322887176,1713479464412,-500.0,0.0001762,2]
[322887177,1713479464422,-548.26,0.0001762,2]
[322887178,1713479464431,-548.26,0.0001762,2]
[322887179,1713479464440,-1271.73,0.0001762,2]
[322887180,1713479464450,-1271.73,0.0001762,2]
[322887181,1713479464459,-500.0,0.0001762,2]
[322887182,1713479464469,-500.0,0.0001762,2]
[322887183,1713479464478,-653.34,0.0001762,2]
[322887184,1713479464488,-653.34,0.0001762,2]
[322887185,1713479464497,-500.0,0.0001762,2]
[322887186,1713479464507,-500.0,0.0001762,2]
[322887187,1713479464516,-500.0,0.0001762,2]
[322887188,1713479464525,-575.88218421,0.0001762,2]
[322887189,1713479464534,-500.0,0.0001762,2]
[322887190,1713479464543,-500.0,0.0001762,2]
[322887191,1713479464553,-1547.36,0.0001762,2]
[322887192,1713479464563,-1547.36,0.0001762,2]
[322887193,1713479464572,-500.0,0.0001762,2]
[322887194,1713479464581,-500.0,0.0001762,2]
[322887195,1713479464590,-516.88,0.0001762,2]
[322887196,1713479464601,-516.88,0.0001762,2]
[322887197,1713479464610,-685.67,0.0001762,2]
[322887198,1713479464619,-685.67,0.0001762,2]
[322887199,1713479464628,-1633.85,0.0001762,2]
[322887200,1713479464637,-500.0,0.0001762,2]
[322887201,1713479464646,-500.0,0.0001762,2]
[322887202,1713479464656,-1633.85,0.0001762,2]
[322887203,1713479464665,-3234.4,0.0001762,2]
[322887204,1713479464674,-500.0,0.0001762,2]
[322887205,1713479464684,-500.0,0.0001762,2]
[322887206,1713479464693,-1399.76,0.0001762,2]
[322887207,1713479464703,-1399.76,0.0001762,2]
[322887208,1713479464712,-3234.4,0.0001762,2]
[322887209,1713479464722,-1168.95,0.0001762,2]
[322887210,1713479464731,-1168.95,0.0001762,2]
[322887211,1713479464741,-2038.23,0.0001762,2]
[322887212,1713479464750,-2038.23,0.0001762,2]
[322887213,1713479464760,-500.0,0.0001762,2]
[322887214,1713479464770,-500.0,0.0001762,2]
[322887215,1713479464779,-500.0,0.0001762,2]
[322887216,1713479464788,-500.0,0.0001762,2]
[322887217,1713479464798,-500.0,0.0001762,2]
[322887218,1713479464807,-500.0,0.0001762,2]
[322887219,1713479464817,-1482.1,0.0001762,2]
[322887220,1713479464826,-1482.1,0.0001762,2]
[322887221,1713479464835,-2002.77,0.0001762,2]
[322887222,1713479464844,-2002.77,0.0001762,2]
[322887223,1713479464856,-500.0,0.0001762,2]
[322887224,1713479464865,-500.0,0.0001762,2]
[322887225,1713479464874,-500.0,0.0001762,2]
[322887226,1713479464883,-500.0,0.0001762,2]
[322887227,1713479464892,-2607.99,0.0001762,2]
[322887228,1713479464903,-2607.99,0.0001762,2]
[322887229,1713479464913,-728.2,0.0001762,2]
[322887230,1713479464925,-728.2,0.0001762,2]
[322887231,1713479464934,-500.0,0.0001762,2]
[322887232,1713479464943,-500.0,0.0001762,2]
[322887233,1713479464953,-988.84,0.0001762,2]
[322887234,1713479464962,-988.84,0.0001762,2]
[322887235,1713479464971,-500.0,0.0001762,2]
[322887236,1713479464980,-500.0,0.0001762,2]
[322887237,1713479464989,-2266.32,0.0001762,2]
[322887238,1713479465000,-2266.32,0.0001762,2]
[322887239,1713479465009,-1480.34,0.0001762,2]
[322887240,1713479465019,-1480.34,0.0001762,2]
[322887241,1713479465029,-1317.31,0.0001762,2]
[322887242,1713479465038,-1317.31,0.0001762,2]
[322887243,1713479465047,-500.0,0.0001762,2]
[322887244,1713479465056,-500.0,0.0001762,2]
[322887245,1713479465066,-942.17,0.0001762,2]
[322887246,1713479465075,-942.17,0.0001762,2]
[322887247,1713479465084,-2490.99,0.0001762,2]
[322887248,1713479465093,-2490.99,0.0001762,2]
[322887249,1713479465106,-500.0,0.0001762,2]
[322887250,1713479465115,-500.0,0.0001762,2]
[322887251,1713479465124,-2127.88,0.0001762,2]
[322887252,1713479465133,-2127.88,0.0001762,2]
[322887253,1713479465142,-231.23229162,0.0001762,2]
[322887254,1713479465151,-645.83,0.0001762,2]
[322887255,1713479465160,-645.83,0.0001762,2]
[322887256,1713479465169,-500.0,0.0001762,2]
[322887257,1713479465178,-500.0,0.0001762,2]
[322887258,1713479465187,-584.22,0.0001762,2]
[322887259,1713479465196,-584.22,0.0001762,2]
[322887260,1713479465205,-1216.71,0.0001762,2]
[322887261,1713479465214,-1216.71,0.0001762,2]
[322887262,1713479465223,-804.67,0.0001762,2]
[322887263,1713479465232,-804.67,0.0001762,2]
[322887264,1713479465242,-500.0,0.0001762,2]
[322887265,1713479465251,-500.0,0.0001762,2]
[322887266,1713479465262,-500.0,0.0001762,2]
[322887267,1713479465271,-500.0,0.0001762,2]
[322887268,1713479465280,-500.0,0.0001762,2]
[322887269,1713479465289,-500.0,0.0001762,2]
[322887270,1713479465298,-1269.39,0.0001762,2]
[322887271,1713479465307,-1269.39,0.0001762,2]
[322887272,1713479465316,-2379.44,0.0001762,2]
[322887273,1713479465325,-2379.44,0.0001762,2]
[322887274,1713479465335,-763.13,0.0001762,2]
[322887275,1713479465346,-763.13,0.0001762,2]
[322887276,1713479465359,-500.0,0.0001762,2]
[322887277,1713479465368,-500.0,0.0001762,2]
[322887278,1713479465377,-500.0,0.0001762,2]
[322887279,1713479465386,-2624.59,0.0001762,2]